fUSD/lending_fUSD_20250514
["ID","MTS","AMOUNT","RATE_DAILY","PERIOD"]
[360993363,1747186245041,-5078.33,0.00010993,2]
[360993364,1747186245050,-400.0,0.00010993,2]
[360993365,1747186245059,-400.0,0.00010993,2]
[360993366,1747186245068,-468.69,0.00010993,2]
[360993367,1747186245079,-400.0,0.00010993,2]
[360993368,1747186245088,-400.0,0.00010993,2]
[360993369,1747186245097,-855.04,0.00010993,2]
[360993370,1747186245106,-9086.85,0.00010993,2]
[360993371,1747186245115,-400.0,0.00010993,2]
[360993372,1747186245124,-400.0,0.00010993,2]
[360993373,1747186245134,-426.96,0.00010993,2]
[360993374,1747186245143,-400.0,0.00010993,2]
[360993375,1747186245154,-400.0,0.00010993,2]
[360993376,1747186245163,-400.0,0.00010993,2]
[360993377,1747186245172,-2027.28,0.00010993,2]
[360993378,1747186245181,-400.0,0.00010993,2]
[360993379,1747186245191,-879.77,0.00010993,2]
[360993380,1747186245201,-400.0,0.00010993,2]
[360993381,1747186245210,-400.0,0.00010993,2]
[360993382,1747186245219,-400.0,0.00010993,2]
[360993383,1747186245228,-619.12,0.00010993,2]
[360993384,1747186245237,-400.0,0.00010993,2]
[360993385,1747186245247,-821.05,0.00010993,2]
[360993386,1747186245258,-400.0,0.00010993,2]
[360993387,1747186245267,-500.0,0.00010993,2]
[360993388,1747186245277,-449.35682868,0.00010993,2]
[360993389,1747186245286,-400.0,0.00010993,2]
[360993390,1747186245295,-626.0,0.00010993,2]
[360993391,1747186245305,-400.0,0.00010993,2]
[360993392,1747186245315,-400.0,0.00010993,2]
[360993393,1747186245324,-400.0,0.00010993,2]
[360993394,1747186245334,-493.56,0.00010993,2]
[360993395,1747186245343,-797.31,0.00010993,2]
[360993396,1747186245354,-500.0,0.00010993,2]
[360993397,1747186245363,-400.0,0.00010993,2]
[360993398,1747186245372,-1094.86,0.00010993,2]
[360993399,1747186245382,-400.0,0.00010993,2]
[360993400,1747186245391,-400.0,0.00010993,2]
[360993401,1747186245401,-400.0,0.00010993,2]
[360993402,1747186245410,-430.0051025,0.00010993,2]
[360993403,1747186245420,-400.0,0.00010993,2]
[360993404,1747186245429,-400.0,0.00010993,2]
[360993405,1747186245438,-400.0,0.00010993,2]
[360993406,1747186245448,-400.0,0.00010993,2]
[360993407,1747186245458,-400.0,0.00010993,2]
[360993408,1747186245469,-589.49,0.00010993,2]
[360993409,1747186245480,-426.49227248,0.00010993,2]
[360993410,1747186245490,-1720.19,0.00010993,2]
[360993411,1747186245500,-352.00342582,0.00010993,2]
[360993412,1747186245510,-400.0,0.00010993,2]
[360993414,1747186245521,-400.0,0.00010993,2]
[360993415,1747186245531,-500.0,0.00010993,2]
[360993416,1747186245540,-400.0,0.00010993,2]
[360993417,1747186245551,-482.34482613,0.00010993,2]
[360993418,1747186245560,-400.0,0.00010993,2]
[360993419,1747186245569,-154.59325211,0.00010993,2]
[360993420,1747186245579,-400.0,0.00010993,2]
[360993421,1747186245588,-400.0,0.00010993,2]
[360993422,1747186245597,-400.0,0.00010993,2]
[360993423,1747186245607,-1410.22,0.00010993,2]
[360993424,1747186245617,-400.0,0.00010993,2]
[360993425,1747186245627,-322.61977121,0.00010993,2]
[360993426,1747186245636,-400.0,0.00010993,2]
[360993427,1747186245646,-423.62,0.00010993,2]
[360993428,1747186245655,-5102.42,0.00010993,2]
[360993429,1747186245664,-400.0,0.00010993,2]
[360993430,1747186245674,-346.29277999,0.00010993,2]
[360993431,1747186245684,-547.54,0.00010993,2]
[360993432,1747186245693,-464.3000486,0.00010993,2]
[360993433,1747186245703,-400.0,0.00010993,2]
[360993434,1747186245712,-1063.47,0.00010993,2]
[360993435,1747186245721,-400.0,0.00010993,2]
[360993436,1747186245730,-1506.97,0.00010993,2]
[360993437,1747186245740,-699.09,0.00010993,2]
[360993438,1747186245751,-400.0,0.00010993,2]
[360993439,1747186245760,-400.0,0.00010993,2]
[360993440,1747186245770,-400.0,0.00010993,2]
[360993441,1747186245779,-400.0,0.00010993,2]
[360993442,1747186245789,-400.0,0.00010993,2]
[360993443,1747186245798,-548.18,0.00010993,2]
[360993444,1747186245808,-400.0,0.00010993,2]
[360993445,1747186245818,-400.0,0.00010993,2]
[360993446,1747186245955,-400.0,0.00010993,2]
[360993447,1747186245981,-400.0,0.00010993,2]
[360993448,1747186245991,-400.0,0.00010993,2]
[360993449,1747186246002,-400.0,0.00010993,2]
[360993450,1747186246011,-400.0,0.00010993,2]
[360993451,1747186246020,-348.32120018,0.00010993,2]
[360993452,1747186246030,-400.0,0.00010993,2]
[360993453,1747186246039,-400.0,0.00010993,2]
[360993454,1747186246049,-400.0,0.00010993,2]
[360993455,1747186246058,-400.0,0.00010993,2]
[360993456,1747186246067,-5165.64,0.00010993,2]
[360993457,1747186246077,-400.0,0.00010993,2]
[360993458,1747186246086,-400.0,0.00010993,2]
[360993459,1747186246095,-400.0,0.00010993,2]
[360993460,1747186246105,-1149.99,0.00010993,2]
[360993461,1747186246114,-728.97,0.00010993,2]
[360993462,1747186246124,-400.0,0.00010993,2]
[360993463,1747186246133,-400.0,0.00010993,2]
[360993464,1747186246143,-400.0,0.00010993,2]
[360993465,1747186246152,-417.32,0.00010993,2]
[360993466,1747186246162,-400.0,0.00010993,2]
[360993467,1747186246171,-400.0,0.00010993,2]
[360993468,1747186246180,-400.0,0.00010993,2]
[360993469,1747186246190,-751.79,0.00010993,2]
[360993470,1747186246199,-358.0,0.00010993,2]
[360993471,1747186246209,-400.0,0.00010993,2]
[360993472,1747186246219,-400.0,0.00010993,2]
[360993473,1747186246229,-400.0,0.00010993,2]
[360993474,1747186246238,-400.0,0.00010993,2]
[360993475,1747186246249,-500.0,0.00010993,2]
[360993476,1747186246260,-407.65,0.00010993,2]
[360993477,1747186246269,-400.0,0.00010993,2]
[360993478,1747186246279,-506.35650111,0.00010993,2]
[360993480,1747186246289,-400.0,0.00010993,2]
[360993482,1747186246299,-400.0,0.00010993,2]
[360993483,1747186246308,-400.0,0.00010993,2]
[360993484,1747186246318,-566.06,0.00010993,2]
[360993485,1747186246328,-400.0,0.00010993,2]
[360993486,1747186246337,-874.45,0.00010993,2]
[360993487,1747186246347,-500.0,0.00010993,2]
[360993488,1747186246356,-246.96,0.00010993,2]
[360993489,1747186246365,-156.56428303,0.00010993,2]
[360993490,1747186246375,-400.0,0.00010993,2]
[360993491,1747186246384,-236.63308317,0.00010993,2]
[360993492,1747186246394,-400.0,0.00010993,2]
[360993493,1747186246404,-400.0,0.00010993,2]
[360993494,1747186246413,-400.0,0.00010993,2]
[360993495,1747186246423,-1019.24,0.00010993,2]
[360993496,1747186246433,-405.07913449,0.00010993,2]
[360993497,1747186246442,-400.0,0.00010993,2]
[360993498,1747186246452,-400.0,0.00010993,2]
[360993499,1747186246461,-400.0,0.00010993,2]
[360993500,1747186246473,-450.39192626,0.00010993,2]
[360993501,1747186246484,-400.0,0.00010993,2]
[360993502,1747186246494,-400.0,0.00010993,2]
[360993503,1747186246506,-400.0,0.00010993,2]
[360993504,1747186246517,-400.0,0.00010993,2]
[360993505,1747186246526,-152.18806406,0.00010993,2]
[360993506,1747186246535,-400.0,0.00010993,2]
[360993507,1747186246546,-400.0,0.00010993,2]
[360993508,1747186246555,-505.94405178,0.00010993,2]
[360993509,1747186246566,-400.0,0.00010993,2]
[360993510,1747186246576,-400.0,0.00010993,2]
[360993511,1747186246585,-400.0,0.00010993,2]
[360993512,1747186246595,-400.0,0.00010993,2]
[360993513,1747186246604,-400.0,0.00010993,2]
[360993514,1747186246613,-246.84639082,0.00010993,2]
[360993515,1747186246622,-400.0,0.00010993,2]
[360993516,1747186246632,-400.0,0.00010993,2]
[360993517,1747186246641,-406.15183363,0.00010993,2]
[360993518,1747186246651,-400.0,0.00010993,2]
[360993519,1747186246660,-400.0,0.00010993,2]
[360993520,1747186246670,-407.83658162,0.00010993,2]
[360993521,1747186246679,-415.72786652,0.00010993,2]
[360993522,1747186246689,-400.0,0.00010994,2]
[360993523,1747186246698,-400.0,0.00010994,2]
[360993524,1747186246707,-400.0,0.00010994,2]
[360993525,1747186246716,-567.02,0.00010994,2]
[360993526,1747186246726,-586.62,0.00010994,2]
[360993527,1747186246735,-430.56,0.00010994,2]
[360993528,1747186246744,-602.43,0.00010994,2]
[360993529,1747186246756,-1480.88,0.00010994,2]
[360993530,1747186246766,-811.96,0.00010994,2]
[360993531,1747186246777,-400.0,0.00010994,2]
[360993532,1747186246787,-521.73,0.00010994,2]
[360993533,1747186246795,-1898.88,0.00010994,2]
[360993534,1747186246805,-439.7239682,0.00010994,2]
[360993535,1747186246815,-857.94,0.00010994,2]
[360993536,1747186246825,-1410.19,0.00010994,2]
[360993537,1747186246834,-424.90343306,0.00010994,2]
[360993538,1747186246843,-566.66,0.00010994,2]
[360993539,1747186246853,-400.0,0.00010994,2]
[360993540,1747186246863,-593.34,0.00010994,2]
[360993541,1747186246872,-517.21,0.00010994,2]
[360993542,1747186246881,-1209.96,0.00010994,2]
[360993543,1747186246890,-2022.80956379,0.00010994,2]
[360993544,1747186246899,-1157.53,0.00010994,2]
[360993545,1747186246909,-461.41,0.00010994,2]
[360993546,1747186246918,-947.37,0.00010994,2]
[360993547,1747186246928,-457.89,0.00010994,2]
[360993548,1747186246938,-400.0,0.00010994,2]
[360993549,1747186246947,-1304.47,0.00010994,2]
[360993550,1747186246956,-495.46,0.00010994,2]
[360993551,1747186246965,-400.0,0.00010994,2]
[360993552,1747186246975,-429.46,0.00010994,2]
[360993553,1747186246984,-1987.7,0.00010994,2]
[360993554,1747186246994,-400.0,0.00010994,2]
[360993555,1747186247004,-869.02,0.00010994,2]
[360993556,1747186247013,-339.2469984,0.00010994,2]
[360993557,1747186247023,-400.0,0.00010994,2]
[360993558,1747186247032,-1664.22,0.00010994,2]
[360993559,1747186247041,-400.0,0.00010994,2]
[360993560,1747186247050,-400.0,0.00010994,2]
[360993561,1747186247059,-400.0,0.00010994,2]
[360993562,1747186247069,-400.0,0.00010994,2]
[360993563,1747186247078,-1618.22,0.00010994,2]
[360993564,1747186247088,-1055.02,0.00010994,2]
[360993565,1747186247097,-3687.9,0.00010994,2]
[360993566,1747186247106,-400.0,0.00010994,2]
[360993567,1747186247115,-419.24,0.00010994,2]
[360993568,1747186247125,-501.04,0.00010994,2]
[360993569,1747186247135,-690.73,0.00010994,2]
[360993570,1747186247144,-400.0,0.00010994,2]
[360993571,1747186247153,-723.89,0.00010994,2]
[360993572,1747186247163,-834.45,0.00010994,2]
[360993573,1747186247174,-123554.0357135,0.00010994,2]
[360993574,1747186247183,-400.0,0.00010994,2]
[360993575,1747186247194,-400.0,0.00010994,2]
[360993576,1747186247204,-400.0,0.00010994,2]
[360993577,1747186247215,-586.64,0.00010994,2]
[360993578,1747186247230,-483.27,0.00010994,2]
[360993579,1747186247241,-604.82,0.00010994,2]
[360993580,1747186247251,-400.0,0.00010994,2]
[360993581,1747186247260,-451.0,0.00010994,2]
[360993582,1747186247270,-400.0,0.00010994,2]
[360993583,1747186247279,-400.0,0.00010994,2]
[360993584,1747186247289,-744.74,0.00010994,2]
[360993585,1747186247298,-596.01,0.00010994,2]
[360993586,1747186247308,-887.88,0.00010994,2]
[360993587,1747186247317,-1528.58,0.00010994,2]
[360993588,1747186247326,-400.0,0.00010994,2]
[360993589,1747186247336,-400.0,0.00010994,2]
[360993590,1747186247346,-1071.34,0.00010994,2]
[360993591,1747186247356,-1222.69,0.00010994,2]
[360993592,1747186247367,-1021.69,0.00010994,2]
[360993593,1747186247377,-1408.07,0.00010994,2]
[360993594,1747186247388,-820.21,0.00010994,2]
[360993595,1747186247397,-758.22,0.00010994,2]
[360993596,1747186247407,-736.42,0.00010994,2]
[360993597,1747186247416,-491.21,0.00010994,2]
[360993598,1747186247426,-935.41,0.00010994,2]
[360993599,1747186247437,-1411.01,0.00010994,2]
[360993600,1747186247447,-400.0,0.00010994,2]
[360993601,1747186247456,-638.66,0.00010994,2]
[360993602,1747186247466,-978.93,0.00010994,2]
[360993603,1747186247481,-579.68,0.00010994,2]
[360993604,1747186247490,-400.0,0.00010994,2]
[360993605,1747186247503,-400.0,0.00010994,2]
[360993606,1747186247513,-400.0,0.00010994,2]
[360993607,1747186247524,-400.0,0.00010994,2]
[360993608,1747186247533,-400.0,0.00010994,2]
[360993609,1747186247543,-400.0,0.00010994,2]
[360993610,1747186247554,-400.0,0.00010994,2]
[360993611,1747186247564,-1172.51,0.00010994,2]
[360993612,1747186247574,-9830.6906558,0.00010994,2]
[360993613,1747186247583,-400.0,0.00010994,2]
[360993614,1747186247592,-1411.18,0.00010994,2]
[360993615,1747186247602,-400.0,0.00010994,2]
[360993616,1747186247610,-860.67,0.00010994,2]
[360993617,1747186247620,-400.0,0.00010994,2]
[360993618,1747186247629,-3822.894596,0.00010994,2]
[360993619,1747186247638,-400.0,0.00010994,2]
[360993620,1747186247649,-400.0,0.00010999,2]
[360993621,1747186247658,-399.11968,0.00010999,2]
[360993622,1747186247668,-400.0,0.00010999,2]
[360993623,1747186247678,-404.8025439,0.00010999,2]
[360993624,1747186247687,-503.29482959,0.00010999,2]
[360993625,1747186247696,-401.23355486,0.00010999,2]
[360993626,1747186247706,-1000.0,0.00010999,2]
[360993627,1747186247715,-500.0,0.00010999,2]
[360993628,1747186247725,-500.0,0.00010999,2]
[360993629,1747186247734,-500.0,0.00010999,2]
[360993630,1747186247744,-500.0,0.00010999,2]
[360993631,1747186247757,-500.0,0.00010999,2]
[360993632,1747186247767,-500.0,0.00010999,2]
[360993633,1747186247776,-300.0,0.00010999,2]
[360993634,1747186247785,-300.0,0.00010999,2]
[360993635,1747186247795,-250.18007473,0.00011,2]
[360993636,1747186247804,-560098.26000315,0.00011,2]
[360993637,1747186247813,-1132749.60060612,0.00011,2]
[360993638,1747186247840,-9356.81276723,0.00011,2]
[360993639,1747186248478,-400.0,0.00010958,2]
[360993640,1747186248487,-187.12499976,0.00011,2]
[360993641,1747186248499,-367.153,0.00011,2]
[360993642,1747186249366,-523.72319935,0.00011,2]
[360993643,1747186250200,-5193.23406632,0.00011,2]
[360993644,1747186250218,-11691.43619083,0.00011,2]
[360993645,1747186250236,-299.6556,0.00011,2]
[360993743,1747186542652,250.0,0.000255,120]
[360993744,1747186573019,-273.07,0.000219,31]
[360993745,1747186573073,-273.07,0.000219,31]
[360993746,1747186573114,-273.07,0.000219,31]
[360993747,1747186573156,-180.79,0.000219,31]
[360993748,1747186614247,235.0,0.00025499,120]
[360993749,1747186662619,1232.55452432,0.000255,120]
[360993752,1747186718806,1130.29,8.219e-05,2]
[360993768,1747186780283,150.0,0.000125,5]
[360993770,1747186806158,6155.65299994,0.000251,120]
[360993771,1747186820456,1000.0,0.000255,120]
[360993772,1747186838869,1000.0,0.000255,120]
[360993773,1747186904734,232.82446124,0.000254,120]
[360993774,1747186918123,-250.72,9.983e-05,2]
[360993779,1747187002866,200.0,0.0002,30]
[360993780,1747187059598,150.0,9.967e-05,7]
[360993781,1747187126889,300.0,0.00013,10]
[360993782,1747187239938,-206.97292155,9.962e-05,2]
[360993783,1747187242091,-43.02707845,9.962e-05,2]
[360993784,1747187308899,500.0,0.0002,30]
[360993785,1747187308944,1000.0,0.00025,60]
[360993786,1747187318152,500.0,0.0002,30]
[360993788,1747187330442,350.0,0.0002,30]
[360993873,1747187432423,-1200.0,9.966e-05,2]
[360993875,1747187432432,-300.0,9.966e-05,2]
[360993877,1747187432442,-212.9407238,9.967e-05,2]
[360993879,1747187432453,-2812.19945321,9.967e-05,2]
[360993883,1747187432484,-538.1539983,9.967e-05,2]
[360994353,1747187437638,-2479.19055492,9.967e-05,2]
[360994359,1747187437685,-65700.08825703,9.967e-05,2]
[360994362,1747187437711,-16140.30000009,9.967e-05,2]
[360994364,1747187437723,-5823.568223,9.967e-05,2]
[360994373,1747187437805,-779.54,9.967e-05,2]
[360994381,1747187437872,-1103.78704119,9.967e-05,2]
[360994383,1747187437883,-496.59,9.967e-05,2]
[360994519,1747187439810,-6162.73586877,9.967e-05,2]
[360994520,1747187440020,-10892.50587969,9.967e-05,2]
[360994521,1747187440031,-200.0,9.975e-05,2]
[360994522,1747187440041,-749.28,9.983e-05,2]
[360994523,1747187440051,-200.0,9.985e-05,2]
[360994524,1747187440066,-450.0,0.0001,2]
[360994525,1747187440076,-23900.0,0.00010019,2]
[360994526,1747187440086,-207.4,0.00010449,2]
[360994527,1747187440096,-1130.29,0.00010475,2]
[360994528,1747187440105,-168.12,0.00010848,2]
[360994529,1747187440115,-202.0031,0.00010858,2]
[360994530,1747187440124,-126270.4794,0.00010858,2]
[360994531,1747187440134,-153.61253468,0.00010892,2]
[360994532,1747187440144,-255.6273,0.00010892,2]
[360994533,1747187440153,-163.37815312,0.000109,2]
[360994534,1747187440163,-182.15125209,0.000109,2]
[360994535,1747187440172,-2622.93982236,0.000109,2]
[360994536,1747187440182,-258.9473505,0.00010944,2]
[360994537,1747187440192,-151.0,0.00010951,2]
[360994538,1747187440202,-287.61899177,0.00010951,2]
[360994539,1747187440211,-1049.53508552,0.00010957,3]
[360994540,1747187440221,-179.134258,0.00010958,2]
[360994541,1747187440231,-400.0,0.00010958,2]
[360994542,1747187440240,-451.87,0.00010958,2]
[360994543,1747187440250,-417.01392398,0.00010958,2]
[360994544,1747187440259,-400.0,0.00010958,2]
[360994545,1747187440270,-400.0,0.00010958,2]
[360994546,1747187440281,-400.0,0.00010958,2]
[360994547,1747187440291,-400.0,0.00010958,2]
[360994548,1747187440300,-486.16,0.00010958,2]
[360994549,1747187440310,-400.0,0.00010958,2]
[360994550,1747187440319,-400.0,0.00010958,2]
[360994551,1747187440329,-462.46,0.00010958,2]
[360994552,1747187440339,-400.0,0.00010958,2]
[360994553,1747187440348,-403.16050725,0.00010958,2]
[360994554,1747187440357,-506.40900181,0.00010958,2]
[360994555,1747187440367,-400.0,0.00010958,2]
[360994556,1747187440376,-425.93600208,0.00010958,2]
[360994557,1747187440386,-400.0,0.00010958,2]
[360994558,1747187440395,-400.0,0.00010958,2]
[360994559,1747187440405,-400.0,0.00010958,2]
[360994560,1747187440415,-400.0,0.00010958,2]
[360994561,1747187440424,-557.82,0.00010958,2]
[360994562,1747187440434,-400.0,0.00010958,2]
[360994563,1747187440443,-400.0,0.00010958,2]
[360994564,1747187440453,-930.66,0.00010958,2]
[360994565,1747187440462,-400.0,0.00010958,2]
[360994566,1747187440472,-400.0,0.00010958,2]
[360994567,1747187440481,-230.81201506,0.00010958,2]
[360994568,1747187440491,-582.64,0.00010958,2]
[360994569,1747187440500,-400.0,0.00010958,2]
[360994570,1747187440509,-400.0,0.00010958,2]
[360994571,1747187440524,-400.0,0.00010958,2]
[360994572,1747187440534,-400.0,0.00010958,2]
[360994573,1747187440543,-400.78648338,0.00010958,2]
[360994574,1747187440553,-400.0,0.00010958,2]
[360994575,1747187440562,-505.12082423,0.00010958,2]
[360994576,1747187440572,-445.64,0.00010958,2]
[360994577,1747187440582,-630.17,0.00010958,2]
[360994578,1747187440591,-400.0,0.00010958,2]
[360994579,1747187440602,-400.0,0.00010958,2]
[360994580,1747187440612,-400.0,0.00010958,2]
[360994581,1747187440622,-166.69986866,0.00010958,2]
[360994582,1747187440631,-492.93,0.00010958,2]
[360994583,1747187440642,-922.47,0.00010958,2]
[360994584,1747187440651,-400.0,0.00010958,2]
[360994585,1747187440661,-405.8150061,0.00010958,2]
[360994586,1747187440671,-675.54,0.00010958,2]
[360994587,1747187440680,-400.0,0.00010958,2]
[360994588,1747187440691,-400.0,0.00010958,2]
[360994589,1747187440701,-446.83935704,0.00010958,2]
[360994590,1747187440711,-400.0,0.00010958,2]
[360994591,1747187440720,-400.0,0.00010958,2]
[360994592,1747187440730,-400.0,0.00010958,2]
[360994593,1747187440740,-400.0,0.00010958,2]
[360994594,1747187440749,-400.0,0.00010958,2]
[360994595,1747187440759,-400.0,0.00010958,2]
[360994596,1747187440772,-400.0,0.00010958,2]
[360994597,1747187440782,-400.0,0.00010958,2]
[360994598,1747187440791,-400.0,0.00010958,2]
[360994599,1747187440801,-407.25,0.00010958,2]
[360994600,1747187440810,-400.0,0.00010958,2]
[360994601,1747187440821,-400.0,0.00010958,2]
[360994602,1747187440831,-400.0,0.00010958,2]
[360994603,1747187440843,-400.0,0.00010958,2]
[360994604,1747187440853,-855.64,0.00010958,2]
[360994605,1747187440863,-413.55241169,0.00010958,2]
[360994606,1747187440872,-400.0,0.00010958,2]
[360994607,1747187440883,-400.0,0.00010958,2]
[360994608,1747187440893,-400.0,0.00010958,2]
[360994609,1747187440902,-597.32,0.00010958,2]
[360994610,1747187440913,-411.50500056,0.00010958,2]
[360994611,1747187440923,-400.0,0.00010958,2]
[360994612,1747187440933,-400.0,0.00010958,2]
[360994613,1747187440942,-400.0,0.00010958,2]
[360994614,1747187440952,-400.0,0.00010958,2]
[360994615,1747187440961,-568.73,0.00010958,2]
[360994616,1747187440970,-400.0,0.00010958,2]
[360994617,1747187440980,-400.0,0.00010958,2]
[360994618,1747187440990,-483.7297181,0.00010958,2]
[360994619,1747187440999,-400.0,0.00010958,2]
[360994620,1747187441010,-400.0,0.00010958,2]
[360994621,1747187441021,-400.0,0.00010958,2]
[360994622,1747187441031,-433.47281516,0.00010958,2]
[360994623,1747187441040,-400.0,0.00010958,2]
[360994624,1747187441050,-400.0,0.00010958,2]
[360994625,1747187441060,-587.92,0.00010958,2]
[360994626,1747187441069,-400.0,0.00010958,2]
[360994627,1747187441079,-410.03589641,0.00010958,2]
[360994628,1747187441089,-400.0,0.00010958,2]
[360994629,1747187441098,-403.46620209,0.00010958,2]
[360994630,1747187441108,-400.0,0.00010958,2]
[360994631,1747187441119,-400.0,0.00010958,2]
[360994632,1747187441129,-400.0,0.00010958,2]
[360994633,1747187441139,-500.0,0.00010958,2]
[360994634,1747187441149,-603.43,0.00010958,2]
[360994635,1747187441159,-400.0,0.00010958,2]
[360994636,1747187441168,-469.23,0.00010958,2]
[360994637,1747187441178,-400.0,0.00010958,2]
[360994638,1747187441187,-400.0,0.00010958,2]
[360994639,1747187441197,-400.0,0.00010958,2]
[360994640,1747187441207,-430.92,0.00010958,2]
[360994641,1747187441216,-412.64965051,0.00010958,2]
[360994642,1747187441235,-370.26781334,0.00010958,2]
[360994643,1747187441454,-402.15828058,0.00010958,2]
[360994644,1747187441464,-400.0,0.00010958,2]
[360994645,1747187441474,-433.66,0.00010958,2]
[360994646,1747187441484,-400.0,0.00010958,2]
[360994647,1747187441494,-500.0,0.00010958,2]
[360994648,1747187441504,-400.0,0.00010958,2]
[360994649,1747187441516,-400.0,0.00010958,2]
[360994650,1747187441526,-400.0,0.00010958,2]
[360994651,1747187441536,-1095.46,0.00010958,2]
[360994652,1747187441546,-400.0,0.00010958,2]
[360994653,1747187441556,-400.0,0.00010958,2]
[360994654,1747187441566,-410.63765536,0.00010958,2]
[360994655,1747187441576,-1075.4,0.00010958,2]
[360994656,1747187441585,-1515.7,0.00010958,2]
[360994657,1747187441595,-400.0,0.00010958,2]
[360994658,1747187441604,-814.06,0.00010958,2]
[360994659,1747187441613,-400.0,0.00010958,2]
[360994660,1747187441623,-981.33,0.00010958,2]
[360994661,1747187441633,-400.0,0.00010958,2]
[360994662,1747187441642,-880.04,0.00010958,2]
[360994663,1747187441653,-400.0,0.00010958,2]
[360994664,1747187441664,-466.8,0.00010958,2]
[360994665,1747187441674,-451.90714715,0.00010958,2]
[360994666,1747187441683,-400.0,0.00010958,2]
[360994667,1747187441692,-427.0225661,0.00010958,2]
[360994668,1747187441701,-400.0,0.00010958,2]
[360994669,1747187441710,-400.0,0.00010958,2]
[360994670,1747187441719,-400.0,0.00010958,2]
[360994671,1747187441729,-413.11,0.00010958,2]
[360994672,1747187441738,-400.0,0.00010958,2]
[360994673,1747187441747,-533.68,0.00010958,2]
[360994674,1747187441758,-400.0,0.00010958,2]
[360994675,1747187441771,-400.0,0.00010958,2]
[360994676,1747187441780,-626.51,0.00010958,2]
[360994677,1747187441790,-400.0,0.00010958,2]
[360994678,1747187441799,-402.65,0.00010958,2]
[360994679,1747187441808,-1900.5,0.00010958,2]
[360994680,1747187441818,-477.26122851,0.00010958,2]
[360994681,1747187441827,-437.12,0.00010958,2]
[360994682,1747187441837,-400.0,0.00010958,2]
[360994683,1747187441846,-400.0,0.00010958,2]
[360994684,1747187441859,-446.41,0.00010958,2]
[360994685,1747187441868,-493.72,0.00010958,2]
[360994686,1747187441877,-400.0,0.00010958,2]
[360994687,1747187441886,-1411.65,0.00010958,2]
[360994688,1747187441895,-407.88396916,0.00010958,2]
[360994689,1747187441905,-860.61,0.00010958,2]
[360994690,1747187441914,-408.66813534,0.00010958,2]
[360994691,1747187441923,-400.0,0.00010958,2]
[360994692,1747187441934,-324.25621138,0.00010958,2]
[360994693,1747187441944,-432.3707923,0.00010958,2]
[360994694,1747187441953,-400.0,0.00010958,2]
[360994695,1747187441962,-400.0,0.00010958,2]
[360994696,1747187441972,-400.0,0.00010958,2]
[360994697,1747187441981,-567.94,0.00010958,2]
[360994698,1747187441990,-400.0,0.00010958,2]
[360994699,1747187441999,-400.0,0.00010958,2]
[360994700,1747187442009,-464.35096446,0.00010958,2]
[360994701,1747187442020,-437.16654255,0.00010958,2]
[360994702,1747187442029,-400.0,0.00010958,2]
[360994703,1747187442039,-400.0,0.00010958,2]